bitfinex-derivatives/quotes_SOLF0:USTF0_20241008
["timestamp","ask_amount","ask_price","bid_price","bid_amount"]
[1728364917210,19.03824839,143.51,143.45,0.40112838]
[1728364917410,10.65,143.47,143.45,0.40112838]
[1728364917614,4.94,143.46,143.45,0.40112838]
[1728364918210,19.0758,143.46,143.45,0.40112838]
[1728364918908,19.47568324,143.35,143.15,21.02502]
[1728364919109,10.65,143.35,143.29,10.65]
[1728364919309,3.5670094,143.38,143.31,10.65]
[1728364919623,5.3,143.37,143.31,10.65]
[1728364919805,10.65,143.36,143.3,14.1396]
[1728364920116,10.65,143.36,143.3,10.65]
[1728364920311,10.65,143.35,143.3,3.4896]
[1728364920510,22.06,143.37,143.28,4.49667369]
[1728364920812,22.06,143.37,143.28,21.25667369]
[1728364921009,22.06,143.37,143.3,3.4896]
[1728364921203,5.3,143.36,143.3,16.76]
[1728364921607,5.3,143.36,143.28,21.25667369]
[1728364921815,5.3,143.35,143.28,21.25667369]
[1728364922114,5.3,143.34,143.3,16.76]
[1728364922507,5.3,143.34,143.31,3.4894]
[1728364922721,5.3,143.34,143.3,16.76]
[1728364922921,5.3,143.36,143.32,16.76]
[1728364923121,5.3,143.36,143.32,20.249]
[1728364923317,5.3,143.36,143.32,16.76]
[1728364923516,0.12502,143.39,143.32,16.76]
[1728364923814,5.3,143.38,143.32,16.76]
[1728364924014,8.7879,143.38,143.32,20.2491]
[1728364924218,5.3,143.38,143.32,16.76]
[1728364924624,0.12502,143.39,143.33,3.4889]
[1728364924625,5.3,143.37,143.33,3.4889]
[1728364925213,0.12502,143.39,143.32,16.76]
[1728364925525,5.3,143.38,143.32,16.76]
[1728364926315,5.42502,143.39,143.32,16.76]
[1728364927014,5.42502,143.39,143.34,3.4885]
[1728364927323,5.42502,143.39,143.35,1.4276]
[1728364927819,0.12502,143.39,143.35,1.4276]
[1728364928020,0.12502,143.39,143.36,3.488]
[1728364928228,0.12502,143.39,143.36,16.76]
[1728364928427,0.12502,143.39,143.37,1.4269]
[1728364928723,0.12502,143.39,143.37,4.9149]
[1728364929110,0.12502,143.39,143.37,1.4269]
[1728364929311,5.3,143.42,143.38,3.4877]
[1728364930224,3.61102,143.45,143.4,3.4872]
[1728364930416,5.3,143.43,143.38,16.76]
[1728364930818,5.3,143.43,143.39,3.4874]
[1728364931012,5.3,143.43,143.38,16.76]
[1728364931516,5.3,143.43,143.41,3.4869]
[1728364931926,5.42502,143.45,143.41,3.4869]
[1728364932120,5.42502,143.45,143.4,16.76]
[1728364932325,5.42502,143.45,143.43,3.4864]
[1728364932721,0.12502,143.45,143.43,3.4864]
[1728364932922,0.12502,143.45,143.44,3.4863]
[1728364933322,0.12502,143.45,143.42,1.3896]
[1728364933323,5.3,143.48,143.42,1.3896]
[1728364933723,5.3,143.48,143.45,3.486]
[1728364936228,75.42502,143.51,143.47,3.4855]
[1728364936423,5.3,143.5,143.47,3.4855]
[1728364937122,0.12502,143.51,143.44,1.4467]
[1728364937344,5.42502,143.51,143.45,16.76]
[1728364937733,5.42502,143.51,143.48,3.4851]
[1728364938124,5.42502,143.51,143.45,16.76]
[1728364938321,5.42502,143.51,143.48,3.4851]
[1728364938522,5.42502,143.51,143.46,1.3954]
[1728364938735,16.76,143.5,143.44,1.4467]
[1728364939134,16.76,143.49,143.43,3.4864]
[1728364940234,16.76,143.5,143.42,18.1496]
[1728364940434,16.76,143.5,143.44,3.4861]
[1728364940738,3.4853,143.48,143.44,3.4861]
[1728364941028,5.3,143.47,143.44,3.4861]
[1728364941223,3.4849,143.5,143.46,3.4858]
[1728364941429,5.3,143.49,143.46,3.4858]
[1728364941834,3.4849,143.5,143.48,3.4853]
[1728364941835,5.3,143.5,143.48,3.4853]
[1728364942034,5.3,143.5,143.46,16.76]
[1728364942331,0.12502,143.51,143.47,16.76]
[1728364942528,0.12502,143.51,143.48,1.3948]
[1728364942928,0.12502,143.51,143.49,1.3749]
[1728364943243,0.12502,143.51,143.5,3.4848]
[1728364944133,3.60822,143.57,143.53,3.4841]
[1728364944339,5.3,143.56,143.49,18.1349]
[1728364944637,5.3,143.56,143.54,3.4837]
[1728364945134,0.12502,143.57,143.49,18.1349]
[1728364945335,5.42502,143.57,143.55,3.4836]
[1728364946230,0.12502,143.57,143.51,16.76]
[1728364946431,5.42502,143.57,143.56,3.4833]
[1728364946625,0.12502,143.57,143.56,3.4833]
[1728364947726,0.12502,143.57,143.51,16.76]
[1728364947932,3.60832,143.57,143.49,18.1349]
[1728364948229,5.42502,143.57,143.56,3.4833]
[1728364948840,0.12502,143.57,143.56,3.4833]
[1728364949235,3.4815,143.64,143.55,16.76]
[1728364949439,5.38,143.62,143.56,2.7187]
[1728364949741,5.38,143.62,143.59,3.4824]
[1728364950327,8.8619,143.62,143.59,3.4824]
[1728364951335,5.38,143.62,143.56,2.7187]
[1728364951540,16.76,143.61,143.56,2.7187]
[1728364951740,16.76,143.61,143.56,1.3418]
[1728364951942,16.76,143.61,143.52,18.1933]
[1728364952137,3.4828,143.59,143.55,3.4834]
[1728364952346,5.36,143.58,143.55,3.4834]
[1728364953339,5.36,143.58,143.52,19.5689]
[1728364953541,5.36,143.58,143.56,3.4833]
[1728364955244,5.36,143.6,143.58,3.4827]
[1728364956046,5.36,143.6,143.54,1.3665]
[1728364956444,8.8425,143.6,143.56,3.4832]
[1728364956644,5.36,143.6,143.56,3.4832]
[1728364957146,8.8424,143.6,143.56,3.4832]
[1728364957648,3.4827,143.59,143.56,3.4832]
[1728364959043,3.4829,143.58,143.55,3.4835]
[1728364959347,22.12,143.6,143.52,1.3756]
[1728364959547,23.4266,143.6,143.52,1.3756]
[1728364959736,3.4833,143.57,143.53,3.484]
[1728364960048,5.36,143.56,143.52,1.3756]
[1728364960547,8.8435,143.56,143.52,4.8597]
[1728364961042,5.36,143.56,143.53,3.4839]
[1728364963546,8.8435,143.56,143.53,3.4839]
[1728364963849,5.36,143.56,143.51,0.12502]
[1728364964055,8.8434,143.56,143.51,0.12502]
[1728364964250,5.36,143.56,143.51,0.12502]
[1728364965464,3.484,143.54,143.51,3.60952]
[1728364966551,3.484,143.54,143.51,0.12502]
[1728364966754,3.4841,143.53,143.51,0.12502]
[1728364966955,5.36,143.56,143.51,0.12502]
[1728364967760,5.36,143.56,143.51,3.60952]
[1728364967958,3.4839,143.54,143.51,3.60952]
[1728364968262,1.4313,143.59,143.51,0.12502]
[1728364968460,5.36,143.58,143.53,3.4839]
[1728364968959,3.4833,143.56,143.53,3.4839]
[1728364969165,3.4833,143.56,143.52,3.4842]
[1728364969763,3.4836,143.55,143.52,3.4842]
[1728364970660,3.4843,143.52,143.51,0.12502]
[1728364970861,5.36,143.52,143.51,0.12502]
[1728364971358,5.36,143.52,143.51,3.60962]
[1728364971955,5.36,143.54,143.53,3.4841]
[1728364972258,5.36,143.55,143.51,0.12502]
[1728364973961,8.8436,143.55,143.52,3.4842]
[1728364974162,5.36,143.55,143.51,0.12502]
[1728364974660,8.8437,143.55,143.52,3.4841]
[1728364974959,5.36,143.55,143.51,0.12502]
[1728364975161,5.36,143.55,143.53,3.484]
[1728364976958,8.8437,143.55,143.52,3.4842]
[1728364977964,3.4839,143.54,143.51,3.60942]
[1728364978363,3.4839,143.54,143.51,0.12502]
[1728364978860,5.36,143.55,143.51,0.12502]
[1728364978861,5.36,143.55,143.52,3.4843]
[1728364979166,5.36,143.55,143.51,0.12502]
[1728364979564,3.484,143.54,143.51,3.60952]
[1728364979764,5.36,143.55,143.51,0.12502]
[1728364980163,3.4841,143.54,143.51,3.60952]
[1728364980362,5.36,143.55,143.51,0.12502]
[1728364981164,3.4843,143.52,143.51,0.12502]
[1728364981467,8.7443,143.52,143.51,0.12502]
[1728364982966,25.5043,143.52,143.51,1e-08]
[1728364984573,25.5043,143.52,143.45,0.12502]
[1728364984574,24.8318,143.52,143.45,0.12502]
[1728364984775,16.76,143.48,143.45,0.12502]
[1728364984971,5.26,143.47,143.45,0.12502]
[1728364985176,3.4858,143.46,143.45,0.12502]
[1728364985668,22.02,143.47,143.39,0.12502]
[1728364985669,3.4867,143.43,143.39,0.12502]
[1728364985869,5.26,143.43,143.39,0.12502]
[1728364986470,16.76,143.42,143.39,0.12502]
[1728364987375,3.4872,143.4,143.39,0.12502]
[1728364987577,8.7472,143.4,143.39,0.12502]
[1728364987882,3.4881,143.37,143.34,1.448]
[1728364988074,8.7481,143.37,143.34,1.448]
[1728364988382,5.26,143.37,143.34,1.448]
[1728364989085,5.26,143.38,143.34,18.208]
[1728364989588,5.26,143.38,143.36,3.488]
[1728364989776,5.26,143.38,143.34,18.208]
[1728364990884,5.26,143.38,143.37,3.488]
[1728364992076,3.40382466,143.44,143.34,18.208]
[1728364992278,5.26,143.43,143.36,16.76]
[1728364993184,8.7467,143.43,143.39,3.4873]
[1728364993579,8.7467,143.43,143.36,16.76]
[1728364993580,3.4869,143.42,143.36,16.76]
[1728364993882,5.26,143.43,143.35,1.3421]
[1728364994088,22.02,143.43,143.35,1.3421]
[1728364994284,16.76,143.41,143.34,1.448]
[1728364994486,5.26,143.4,143.34,1.448]
[1728364995285,3.4879,143.38,143.34,4.9366]
[1728364995989,3.4879,143.38,143.35,3.4884]
[1728364997091,3.4879,143.38,143.34,4.9366]
[1728364997291,5.26,143.4,143.34,1.448]
[1728364997485,3.488,143.37,143.34,1.448]
[1728364997695,5.26,143.37,143.34,1.448]
[1728364998085,22.02,143.37,143.33,0.12502]
[1728364998584,25.5081,143.37,143.33,0.12502]
[1728364998787,25.5081,143.37,143.33,3.61382]
[1728364998991,16.76,143.39,143.33,0.12502]
[1728364999189,5.26,143.38,143.35,3.4883]
[1728364999389,5.26,143.37,143.33,0.12502]
[1728364999784,5.26,143.37,143.34,3.4885]
[1728365000282,5.26,143.37,143.33,0.12502]
[1728365000490,3.4882,143.36,143.33,3.61382]
[1728365000783,22.02,143.37,143.33,0.12502]
[1728365001584,3.4882,143.36,143.33,0.12502]
[1728365001781,22.02,143.37,143.33,0.12502]
[1728365001980,3.4886,143.35,143.33,0.12502]
[1728365002184,5.26,143.34,143.33,0.12502]
[1728365003390,8.7487,143.34,143.33,0.12502]
[1728365004097,5.26,143.34,143.33,0.12502]
[1728365005383,5.26,143.34,143.33,3.61392]
[1728365006393,5.26,143.34,143.33,0.12502]
[1728365007493,8.7487,143.34,143.33,0.12502]
[1728365008289,5.26,143.34,143.28,0.31677369]
[1728365008493,3.4896,143.31,143.28,0.31677369]
[1728365009287,5.26,143.34,143.28,0.31677369]
[1728365009687,16.76,143.33,143.28,0.31677369]
[1728365010197,16.76,143.33,143.28,3.80677369]
[1728365010695,3.4893,143.32,143.28,3.80677369]
[1728365012297,3.4895,143.31,143.28,3.80677369]
[1728365012894,3.4895,143.31,143.28,0.31677369]
[1728365012895,8.8097,143.3,143.28,0.31677369]
[1728365013496,20.2499,143.29,143.28,0.31677369]
[1728365014000,23.81032298,143.29,143.28,0.31677369]
[1728365015405,25.5699,143.29,143.28,0.31677369]
[1728365016009,8.8099,143.29,143.28,0.31677369]
[1728365017698,16.76,143.33,143.28,0.31677369]
[1728365017902,5.32,143.32,143.28,0.31677369]
[1728365018102,5.32,143.32,143.29,3.4899]
[1728365018406,5.32,143.32,143.28,0.31677369]
[1728365018604,5.32,143.32,143.28,3.80667369]
[1728365018810,8.8093,143.32,143.28,3.80667369]
[1728365019007,5.32,143.32,143.28,0.31677369]
[1728365019208,5.32,143.32,143.29,3.4899]
[1728365019505,5.32,143.32,143.28,0.31677369]
[1728365019710,20.2487,143.34,143.31,3.4894]
[1728365019903,5.32,143.33,143.31,3.4894]
[1728365020710,5.32,143.33,143.31,3.4892]
[1728365022211,5.32,143.33,143.28,2.99887369]
[1728365022510,5.32,143.33,143.3,3.4896]
[1728365022708,8.8091,143.33,143.3,3.4896]
[1728365023110,8.8091,143.33,143.28,2.99887369]
[1728365023309,8.8091,143.33,143.29,3.4897]
[1728365024510,8.8091,143.33,143.28,2.99887369]
[1728365024719,3.4892,143.32,143.28,2.99887369]
[1728365024908,5.32,143.33,143.28,2.99887369]
[1728365025105,8.8091,143.33,143.3,3.4896]
[1728365026311,8.8091,143.33,143.28,2.99887369]
[1728365026502,20.2493,143.32,143.29,3.4897]
[1728365027509,16.76,143.32,143.3,3.4896]
[1728365028114,8.809,143.33,143.3,3.4896]
[1728365028511,3.4892,143.32,143.29,3.4898]
[1728365029714,16.76,143.32,143.28,0.31677369]
[1728365030310,3.4898,143.3,143.28,0.31677369]
[1728365030914,16.76,143.32,143.28,0.31677369]
[1728365031119,3.4896,143.31,143.28,3.80687369]
[1728365032008,3.4897,143.3,143.28,0.31677369]
[1728365032417,5.34,143.29,143.28,0.31677369]
[1728365033013,8.8299,143.29,143.28,0.31677369]
[1728365036424,3.4901,143.28,143.27,0.12502]
[1728365036614,20.2501,143.28,143.27,0.12502]
[1728365037719,3.4909,143.25,143.23,3.4913]
[1728365037910,3.4909,143.25,143.22,3.76504224]
[1728365039917,5.26,143.26,143.22,0.27344224]
[1728365040521,3.491,143.25,143.23,3.4914]
[1728365040715,5.26,143.26,143.22,0.27344224]
[1728365041112,22.02,143.26,143.22,0.27344224]
[1728365041315,3.4912,143.24,143.22,0.27344224]
[1728365041819,3.491,143.25,143.22,3.76504224]
[1728365042021,16.76,143.26,143.22,3.76504224]
[1728365042022,5.26,143.26,143.22,0.27344224]
[1728365042422,5.26,143.26,143.23,3.4913]
[1728365043017,3.4904,143.27,143.23,3.4913]
[1728365043219,3.4909,143.25,143.22,0.27344224]
[1728365043817,5.26,143.26,143.22,0.27344224]
[1728365044414,5.26,143.26,143.23,10.72]
[1728365045017,5.26,143.26,143.24,3.4911]
[1728365046422,5.26,143.26,143.23,3.4913]
[1728365046826,8.7507,143.26,143.23,3.4913]
[1728365047222,5.26,143.26,143.22,0.27344224]
[1728365047423,3.491,143.25,143.22,0.27344224]
[1728365047627,5.26,143.26,143.22,0.27344224]
[1728365048019,3.4913,143.24,143.22,0.27344224]
[1728365048220,5.26,143.26,143.22,0.27344224]
[1728365048521,3.4914,143.23,143.22,0.27344224]
[1728365048726,8.7514,143.23,143.22,0.27344224]
[1728365049828,25.5014,143.23,143.22,0.27344224]
[1728365050529,22.01,143.23,143.06,0.38937226]
[1728365050724,16.75,143.18,143.1,2.7331]
[1728365050918,5.26,143.17,143.1,2.7331]
[1728365051423,5.26,143.17,143.12,3.4939]
[1728365051620,5.26,143.17,143.1,2.7331]
[1728365051822,3.4931,143.16,143.1,6.2275]
[1728365052030,20.2431,143.16,143.1,6.2275]
[1728365052623,3.4931,143.16,143.1,6.2275]
[1728365052825,8.7531,143.16,143.1,6.2275]
[1728365053018,3.47689379,143.2,143.1,2.7331]
[1728365053220,5.26,143.19,143.1,19.4831]
[1728365053733,3.4926,143.18,143.14,3.4935]
[1728365053920,5.26,143.19,143.14,3.4935]
[1728365054122,3.4928,143.18,143.14,3.4935]
[1728365055321,3.4928,143.17,143.14,3.4935]
[1728365056425,3.4928,143.17,143.1,19.4831]
[1728365056426,8.7531,143.16,143.13,3.4938]
[1728365056631,8.7531,143.16,143.1,2.7331]
[1728365057335,5.26,143.16,143.1,2.7331]
[1728365058036,5.26,143.16,143.1,19.4831]
[1728365058626,5.26,143.16,143.15,3.61832]
[1728365060722,5.28,143.19,143.17,3.4926]
[1728365061027,16.75,143.2,143.16,1.4246]
[1728365061028,5.28,143.2,143.16,1.4246]
[1728365061228,5.28,143.2,143.16,2.7652]
[1728365061428,5.28,143.21,143.18,3.4924]
[1728365061630,16.75,143.22,143.16,2.7652]
[1728365061824,5.28,143.23,143.22,3.4916]
[1728365062029,5.28,143.24,143.22,3.4916]
[1728365062425,5.28,143.24,143.17,16.75]
[1728365062823,5.28,143.24,143.16,2.7652]
[1728365063023,0.12502,143.27,143.18,16.75]
[1728365063231,5.40502,143.27,143.19,1.3532]
[1728365063432,5.40502,143.27,143.19,6.6332]
[1728365063638,8.89542,143.27,143.23,3.4912]
[1728365064633,5.40502,143.27,143.24,3.4911]
[1728365064830,5.40502,143.27,143.19,6.6332]
[1728365065138,5.40502,143.27,143.2,16.75]
[1728365065547,5.40502,143.27,143.19,6.6332]
[1728365065725,5.40502,143.27,143.19,23.3832]
[1728365066130,5.40502,143.27,143.21,3.4918]
[1728365066335,5.40502,143.27,143.22,1.4265]
[1728365066840,22.15502,143.27,143.22,1.4265]
[1728365067234,3.4911,143.25,143.22,1.4265]
[1728365067540,5.26,143.24,143.22,1.4265]
[1728365068137,8.7511,143.24,143.22,1.4265]
[1728365068340,8.7511,143.24,143.2,3.492]
[1728365068341,22.01,143.24,143.2,3.492]
[1728365068638,22.01,143.24,143.17,2.7896]
[1728365069339,16.75,143.23,143.17,2.7896]
[1728365069737,5.32,143.22,143.17,2.7896]
[1728365069948,8.8117,143.22,143.17,2.7896]
[1728365070243,5.32,143.22,143.17,2.7896]
[1728365070630,20.2419,143.21,143.17,4.9191]
[1728365071633,3.4921,143.2,143.17,1.4265]
[1728365071838,22.07,143.21,143.17,1.4265]
[1728365072843,25.562,143.21,143.17,4.9192]
[1728365073842,3.4921,143.2,143.17,1.4265]
[1728365074246,22.07,143.21,143.16,3.493]
[1728365074941,22.07,143.21,143.15,0.12502]
[1728365075244,16.75,143.19,143.15,0.12502]
[1728365076443,3.4931,143.16,143.15,0.12502]
[1728365076641,5.34,143.16,143.15,0.12502]
[1728365077043,3.493,143.17,143.15,0.12502]
[1728365077247,5.34,143.17,143.15,0.12502]
[1728365077543,5.34,143.17,143.15,3.61812]
[1728365078140,5.34,143.17,143.15,0.12502]
[1728365078846,5.34,143.17,143.15,3.61812]
[1728365079046,5.34,143.18,143.15,3.61812]
[1728365079352,5.34,143.18,143.16,3.4929]
[1728365079847,5.34,143.18,143.15,0.12502]
[1728365080051,5.34,143.18,143.16,3.4929]
[1728365081836,5.34,143.18,143.15,0.12502]
[1728365082448,5.34,143.18,143.15,3.61812]
[1728365084249,25.5824,143.19,143.15,3.61812]
[1728365084640,22.09,143.19,143.15,0.12502]
[1728365086054,3.493,143.17,143.15,0.12502]
[1728365086558,22.09,143.19,143.15,0.12502]
[1728365087353,3.493,143.17,143.15,0.12502]
[1728365088552,3.4931,143.16,143.15,0.12502]
[1728365091452,22.09,143.19,143.15,0.12502]
[1728365092553,3.493,143.17,143.15,0.12502]
[1728365093256,22.09,143.19,143.15,3.61832]
[1728365093257,5.34,143.16,143.15,3.61832]
[1728365093448,5.34,143.16,143.15,0.12502]
[1728365094148,16.75,143.19,143.15,0.12502]
[1728365094353,5.34,143.19,143.15,0.12502]
[1728365094949,5.34,143.19,143.17,3.4928]
[1728365096161,8.8323,143.19,143.16,3.4929]
[1728365096459,5.34,143.19,143.15,0.12502]
[1728365096854,5.34,143.19,143.16,3.4929]
[1728365097153,16.75,143.21,143.15,0.12502]
[1728365097352,5.34,143.2,143.15,0.12502]
[1728365097648,5.34,143.2,143.15,2.78662]
[1728365098048,5.34,143.2,143.18,3.4925]
[1728365098681,10.73,143.19,143.15,13.51662]
[1728365099349,10.73,143.19,143.16,3.4929]
[1728365099550,10.73,143.19,143.15,13.51662]
[1728365099863,10.73,143.19,143.16,3.4929]
[1728365100061,10.73,143.18,143.15,1.43432]
[1728365100655,10.73,143.18,143.15,4.92742]
[1728365100851,10.73,143.18,143.15,1.43432]
[1728365101359,14.2226,143.18,143.15,4.92752]
[1728365101562,10.73,143.18,143.15,1.43432]
[1728365102457,16.07,143.2,143.15,12.16432]
[1728365102858,10.73,143.19,143.16,3.4929]
[1728365103063,16.07,143.19,143.16,3.4929]
[1728365103569,19.5623,143.19,143.16,3.4929]
[1728365103962,10.73,143.17,143.15,1.43432]
[1728365104269,19.563,143.17,143.15,0.12502]
[1728365104469,16.07,143.17,143.15,0.12502]
[1728365104669,14.2231,143.16,143.15,0.12502]
[1728365105266,10.73,143.16,143.15,0.12502]
[1728365105461,16.07,143.17,143.15,0.12502]
[1728365105660,5.34,143.17,143.16,3.4931]
[1728365108070,5.34,143.2,143.16,10.73]
[1728365108265,16.07,143.21,143.16,10.73]
[1728365108770,10.73,143.21,143.16,10.73]
[1728365108974,16.07,143.22,143.17,12.0781]
[1728365109166,10.73,143.22,143.17,12.0781]
[1728365109473,10.73,143.22,143.2,3.4919]
[1728365109671,16.07,143.23,143.18,10.73]
[1728365109873,10.73,143.22,143.2,3.492]
[1728365110261,10.73,143.21,143.17,1.3481]
[1728365110469,10.73,143.19,143.17,1.3481]
[1728365110773,5.34,143.23,143.15,0.12502]
[1728365110962,5.34,143.23,143.15,10.85502]
[1728365111164,10.73,143.21,143.15,10.85502]
[1728365111662,10.73,143.21,143.18,3.4925]
[1728365112567,3.4918,143.22,143.18,3.4925]
[1728365112778,14.2218,143.22,143.19,3.4923]
[1728365113160,14.2218,143.22,143.18,3.4925]
[1728365113570,3.4919,143.21,143.18,3.4925]
[1728365113970,10.73,143.2,143.16,3.493]
[1728365114170,10.73,143.19,143.16,3.493]
[1728365114566,10.73,143.2,143.16,3.493]
[1728365114762,10.73,143.2,143.15,14.34832]
[1728365115075,10.73,143.2,143.15,10.85502]
[1728365115767,14.2223,143.2,143.17,3.4928]
[1728365115968,14.2223,143.2,143.15,10.85502]
[1728365116680,3.4923,143.2,143.15,10.85502]
[1728365116968,0.12502,143.27,143.18,10.73]
[1728365117170,10.73,143.23,143.15,0.12502]
[1728365117372,16.07,143.22,143.17,10.73]
[1728365117576,3.492,143.21,143.18,3.4924]
[1728365117774,16.07,143.22,143.17,10.73]
[1728365117977,19.5617,143.22,143.17,10.73]
[1728365118572,19.5617,143.22,143.19,3.4921]
[1728365119173,14.2215,143.23,143.2,3.492]
[1728365119371,19.5615,143.23,143.2,3.492]
[1728365119889,16.07,143.23,143.19,10.73]
[1728365120073,3.4916,143.22,143.19,14.2223]
[1728365120575,3.492,143.21,143.17,3.4928]
[1728365120770,3.492,143.21,143.17,10.73]
[1728365120972,10.73,143.21,143.15,0.12502]
[1728365121278,3.4925,143.19,143.16,14.223]
[1728365123381,3.4929,143.17,143.15,0.12502]
[1728365123578,16.07,143.19,143.15,0.12502]
[1728365123779,3.4926,143.18,143.15,0.12502]
[1728365124577,3.4926,143.18,143.15,10.85502]
[1728365125381,5.34,143.19,143.15,10.85502]
[1728365125582,8.8325,143.19,143.16,10.73]
[1728365125777,5.34,143.19,143.16,10.73]
[1728365126378,5.34,143.19,143.16,14.223]
[1728365127087,5.34,143.19,143.16,10.73]
[1728365127684,3.4926,143.18,143.16,10.73]
[1728365128287,3.4929,143.17,143.15,10.85502]
[1728365128589,5.34,143.19,143.15,10.85502]
[1728365129180,3.4927,143.18,143.15,14.34812]
[1728365129385,5.28,143.2,143.16,10.73]
[1728365129678,3.4923,143.19,143.16,10.73]
[1728365129982,16.01,143.2,143.15,10.85502]
[1728365130585,3.4928,143.18,143.15,14.34822]
[1728365130886,16.01,143.2,143.15,10.85502]
[1728365131892,10.73,143.19,143.15,10.85502]
[1728365132286,10.73,143.19,143.15,0.12502]
[1728365132688,3.493,143.17,143.15,0.12502]
[1728365132991,5.28,143.17,143.15,0.12502]
[1728365133587,3.4931,143.16,143.15,0.12502]
[1728365133780,10.73,143.19,143.15,0.12502]
[1728365133988,5.28,143.18,143.15,10.85502]
[1728365134987,5.28,143.18,143.15,3.61822]
[1728365135188,5.28,143.18,143.15,0.12502]
[1728365135794,3.493,143.17,143.15,0.12502]
[1728365137289,3.4931,143.16,143.15,0.12502]
[1728365137699,5.28,143.18,143.15,0.12502]
[1728365137992,3.4929,143.17,143.15,0.12502]
[1728365138193,5.28,143.18,143.15,0.12502]
[1728365138501,8.7727,143.18,143.15,3.61832]
[1728365138798,5.28,143.18,143.15,0.12502]
[1728365139094,10.73,143.17,143.12,14.224]
[1728365139788,3.4936,143.14,143.11,0.3026349]
[1728365139992,3.4936,143.14,143.11,3.7968349]
[1728365140194,3.4936,143.14,143.12,10.73]
[1728365141201,5.28,143.15,143.11,0.3026349]
[1728365141399,3.494,143.13,143.11,11.0326349]
[1728365141799,5.28,143.15,143.11,11.0326349]
[1728365142002,3.4939,143.13,143.11,11.0326349]
[1728365142198,5.28,143.15,143.11,0.3026349]
[1728365142397,3.494,143.12,143.11,0.3026349]
[1728365142701,8.774,143.12,143.11,0.3026349]
[1728365145399,19.504,143.12,143.11,0.3026349]
[1728365146603,8.774,143.12,143.11,0.3026349]
[1728365146801,19.504,143.12,143.11,0.3026349]
[1728365147497,5.28,143.12,143.09,0.12502]
[1728365147693,3.4945,143.1,143.09,0.12502]
[1728365148098,16.01,143.12,143.09,0.12502]
[1728365148304,3.4944,143.11,143.09,0.12502]
[1728365148694,3.494,143.13,143.09,10.85502]
[1728365148904,5.28,143.12,143.09,10.85502]
[1728365149298,8.7742,143.12,143.09,14.34972]
[1728365150004,5.28,143.12,143.09,10.85502]
[1728365150199,3.4943,143.11,143.09,10.85502]
[1728365150811,5.28,143.12,143.09,0.12502]
[1728365150812,3.4945,143.1,143.09,0.12502]
[1728365151499,16.01,143.12,143.09,0.12502]
[1728365151500,3.4945,143.11,143.09,0.12502]
[1728365151705,16.01,143.12,143.09,0.12502]
[1728365152903,3.4944,143.11,143.09,0.12502]
[1728365153702,3.4944,143.11,143.07,12.0823]
[1728365153703,14.2245,143.1,143.06,0.38937226]
[1728365153905,10.73,143.07,143.03,3.62122]